[Event "Titled Tuesday Blitz July 25 Late 2023"]
[White "Yeritsyan, Hayk"]
[Black "Zanette, Edgard Vinicius"]
[WhiteFideId "13307320"]
[BlackFideId "2109263"]
[WhiteElo "2477"]
[BlackElo "2301"]
[Result "1/2-1/2"]
[Round "3"]
[TimeControl "180+2"]
[Date "2023.07.25"]
[WhiteClock "0:00:12"]
[BlackClock "0:00:11"]
[Board "169"]

1. d4 {[%clk 0:02:58]}  Nf6 {[%clk 0:02:59]} 2. Nf3 {[%clk 0:02:58]}  e6 {[%clk 0:02:59]} 3. e3 {[%clk 0:02:58]}  c5 {[%clk 0:02:58]} 4. Bd3 {[%clk 0:02:59]}  Nc6 {[%clk 0:02:56]} 5. c3 {[%clk 0:02:59]}  d5 {[%clk 0:02:54]} 6. Nbd2 {[%clk 0:03:00]}  Be7 {[%clk 0:02:54]} 7. Qe2 {[%clk 0:03:00]}  O-O {[%clk 0:02:53]} 8. O-O {[%clk 0:02:56]}  Qc7 {[%clk 0:02:48]} 9. dxc5 {[%clk 0:02:55]}  Bxc5 {[%clk 0:02:48]} 10. e4 {[%clk 0:02:56]}  dxe4 {[%clk 0:02:42]} 11. Nxe4 {[%clk 0:02:57]}  Nxe4 {[%clk 0:02:32]} 12. Bxe4 {[%clk 0:02:50]}  f5 {[%clk 0:02:32]} 13. Bc2 {[%clk 0:02:48]}  a5 {[%clk 0:02:26]} 14. Qc4 {[%clk 0:02:30]}  Ne7 {[%clk 0:01:39]} 15. Qh4 {[%clk 0:02:07]}  Ng6 {[%clk 0:01:33]} 16. Qh5 {[%clk 0:01:58]}  Nf4 {[%clk 0:01:29]} 17. Bxf4 {[%clk 0:01:25]}  Qxf4 {[%clk 0:01:28]} 18. Qg5 {[%clk 0:01:21]}  Qxg5 {[%clk 0:01:27]} 19. Nxg5 {[%clk 0:01:22]}  h6 {[%clk 0:01:24]} 20. Nf3 {[%clk 0:01:22]}  a4 {[%clk 0:01:18]} 21. b4 {[%clk 0:01:17]}  axb3 {[%clk 0:01:08]} 22. axb3 {[%clk 0:01:17]}  Bd7 {[%clk 0:01:07]} 23. b4 {[%clk 0:01:15]}  Be7 {[%clk 0:01:05]} 24. Bb3 {[%clk 0:01:15]}  Bf6 {[%clk 0:01:04]} 25. Nd4 {[%clk 0:01:11]}  Bxd4 {[%clk 0:01:00]} 26. cxd4 {[%clk 0:01:11]}  Rfc8 {[%clk 0:00:55]} 27. h4 {[%clk 0:00:46]}  g5 {[%clk 0:00:54]} 28. hxg5 {[%clk 0:00:44]}  hxg5 {[%clk 0:00:55]} 29. Rxa8 {[%clk 0:00:38]}  Rxa8 {[%clk 0:00:54]} 30. Re1 {[%clk 0:00:39]}  Kf7 {[%clk 0:00:50]} 31. d5 {[%clk 0:00:37]}  Re8 {[%clk 0:00:46]} 32. Rc1 {[%clk 0:00:27]}  Kf6 {[%clk 0:00:43]} 33. Rc7 {[%clk 0:00:26]}  Bc8 {[%clk 0:00:39]} 34. dxe6 {[%clk 0:00:25]}  Bxe6 {[%clk 0:00:39]} 35. Bxe6 {[%clk 0:00:24]}  Rxe6 {[%clk 0:00:39]} 36. Rxb7 {[%clk 0:00:25]}  Re1+ {[%clk 0:00:39]} 37. Kh2 {[%clk 0:00:25]}  f4 {[%clk 0:00:36]} 38. f3 {[%clk 0:00:24]}  Rb1 {[%clk 0:00:35]} 39. Rb8 {[%clk 0:00:24]}  Kg7 {[%clk 0:00:33]} 40. b5 {[%clk 0:00:24]}  Rb2 {[%clk 0:00:33]} 41. b6 {[%clk 0:00:24]}  Kh7 {[%clk 0:00:33]} 42. b7 {[%clk 0:00:25]}  Kg7 {[%clk 0:00:34]} 43. Kg1 {[%clk 0:00:22]}  Kh7 {[%clk 0:00:31]} 44. Kf1 {[%clk 0:00:22]}  Kg7 {[%clk 0:00:32]} 45. Ke1 {[%clk 0:00:23]}  Kh7 {[%clk 0:00:27]} 46. Kd1 {[%clk 0:00:23]}  Kg7 {[%clk 0:00:27]} 47. Kc1 {[%clk 0:00:23]}  Rb5 {[%clk 0:00:26]} 48. Kc2 {[%clk 0:00:24]}  Kh7 {[%clk 0:00:26]} 49. Kd3 {[%clk 0:00:24]}  Kg7 {[%clk 0:00:25]} 50. Kc4 {[%clk 0:00:25]}  Rb1 {[%clk 0:00:25]} 51. Kd5 {[%clk 0:00:24]}  Kh7 {[%clk 0:00:25]} 52. Ke6 {[%clk 0:00:24]}  Kg7 {[%clk 0:00:24]} 53. Kf5 {[%clk 0:00:20]}  Rb5+ {[%clk 0:00:24]} 54. Kg4 {[%clk 0:00:21]}  Kh7 {[%clk 0:00:24]} 55. Rc8 {[%clk 0:00:19]}  Rxb7 {[%clk 0:00:24]} 56. Kxg5 {[%clk 0:00:16]}  Rg7+ {[%clk 0:00:24]} 57. Kxf4 {[%clk 0:00:16]}  Rxg2 {[%clk 0:00:25]} 58. Rc5 {[%clk 0:00:13]}  Ra2 {[%clk 0:00:21]} 59. Rg5 {[%clk 0:00:12]}  Ra4+ {[%clk 0:00:20]} 60. Kg3 {[%clk 0:00:12]}  Ra3 {[%clk 0:00:20]} 61. Kg4 {[%clk 0:00:10]}  Ra1 {[%clk 0:00:19]} 62. f4 {[%clk 0:00:11]}  Rg1+ {[%clk 0:00:18]} 63. Kf5 {[%clk 0:00:11]}  Rxg5+ {[%clk 0:00:17]} 64. Kxg5 {[%clk 0:00:12]}  Kg7 {[%clk 0:00:16]} 65. Kf5 {[%clk 0:00:12]}  Kf7 {[%clk 0:00:17]} 66. Ke5 {[%clk 0:00:13]}  Ke7 {[%clk 0:00:17]} 67. Kf5 {[%clk 0:00:14]}  Kf7 {[%clk 0:00:18]} 68. Kg5 {[%clk 0:00:14]}  Kg7 {[%clk 0:00:18]} 69. f5 {[%clk 0:00:11]}  Kf7 {[%clk 0:00:18]} 70. f6 {[%clk 0:00:11]}  Kf8 {[%clk 0:00:18]} 71. Kf4 {[%clk 0:00:11]}  Ke8 {[%clk 0:00:16]} 72. Ke5 {[%clk 0:00:12]}  Kf7 {[%clk 0:00:16]} 73. Kf5 {[%clk 0:00:13]}  Kf8 {[%clk 0:00:16]} 74. Kg4 {[%clk 0:00:12]}  Kg8 {[%clk 0:00:13]} 75. Kh5 {[%clk 0:00:11]}  Kf7 {[%clk 0:00:13]} 76. Kg5 {[%clk 0:00:11]}  Kf8 {[%clk 0:00:13]} 77. Kf4 {[%clk 0:00:11]}  Kf7 {[%clk 0:00:10]} 78. Kf5 {[%clk 0:00:11]}  Kf8 {[%clk 0:00:11]} 79. Kg6 {[%clk 0:00:12]}  Kg8 {[%clk 0:00:11]} 80. Kh6 {[%clk 0:00:12]}  Kf7 {[%clk 0:00:11]} 81. Kg5 {[%clk 0:00:12]} 1/2-1/2


[Site "https://www.chess.com"]

[Event "Titled Tuesday Blitz July 25 Late 2023"]
[White "Ocido, Michael"]
[Black "EdmundPlayer"]
[WhiteFideId "115201920"]
[WhiteElo "2457"]
[BlackElo "2275"]
[Result "1-0"]
[Round "3"]
[TimeControl "180+2"]
[Date "2023.07.25"]
[WhiteClock "0:00:27"]
[BlackClock "0:00:00"]
[Board "173"]

1. d4 {[%clk 0:03:00]}  d5 {[%clk 0:02:59]} 2. c4 {[%clk 0:02:59]}  dxc4 {[%clk 0:02:59]} 3. e3 {[%clk 0:02:59]}  e5 {[%clk 0:02:56]} 4. Bxc4 {[%clk 0:02:56]}  exd4 {[%clk 0:02:56]} 5. exd4 {[%clk 0:02:57]}  Nf6 {[%clk 0:02:54]} 6. Nf3 {[%clk 0:02:57]}  Bb4+ {[%clk 0:02:52]} 7. Nc3 {[%clk 0:02:55]}  O-O {[%clk 0:02:51]} 8. O-O {[%clk 0:02:56]}  Bg4 {[%clk 0:02:51]} 9. Be3 {[%clk 0:02:41]}  Bd6 {[%clk 0:02:46]} 10. h3 {[%clk 0:02:41]}  Bh5 {[%clk 0:02:45]} 11. Be2 {[%clk 0:02:36]}  Nc6 {[%clk 0:02:40]} 12. Re1 {[%clk 0:02:22]}  Re8 {[%clk 0:02:37]} 13. Qb3 {[%clk 0:02:20]}  Qc8 {[%clk 0:01:54]} 14. Rac1 {[%clk 0:02:15]}  a6 {[%clk 0:01:50]} 15. Na4 {[%clk 0:01:59]}  Qb8 {[%clk 0:01:12]} 16. Nc5 {[%clk 0:01:46]}  b6 {[%clk 0:00:45]} 17. Nxa6 {[%clk 0:01:34]}  Qb7 {[%clk 0:00:45]} 18. a3 {[%clk 0:01:12]}  Na5 {[%clk 0:00:28]} 19. Qd3 {[%clk 0:01:05]}  Bg6 {[%clk 0:00:19]} 20. Qb5 {[%clk 0:00:52]}  Be4 {[%clk 0:00:17]} 21. Nb4 {[%clk 0:00:48]}  Nb3 {[%clk 0:00:13]} 22. Rc3 {[%clk 0:00:43]}  Ra5 {[%clk 0:00:10]} 23. Qc4 {[%clk 0:00:36]}  Bxb4 {[%clk 0:00:09]} 24. Qxb4 {[%clk 0:00:35]}  Bd5 {[%clk 0:00:05]} 25. Rxb3 {[%clk 0:00:34]}  Bxb3 {[%clk 0:00:05]} 26. Qxb3 {[%clk 0:00:34]}  Ne4 {[%clk 0:00:04]} 27. Ne5 {[%clk 0:00:32]}  c5 {[%clk 0:00:03]} 28. Bf3 {[%clk 0:00:29]}  cxd4 {[%clk 0:00:00]} 29. Bxe4 {[%clk 0:00:27]} 1-0


[Site "https://www.chess.com"]

[Event "Titled Tuesday Blitz July 25 Late 2023"]
[White "Georg, Heinz"]
[Black "ExchangeAB"]
[WhiteFideId "4607295"]
[WhiteElo "2265"]
[BlackElo "2452"]
[Result "1-0"]
[Round "3"]
[TimeControl "180+2"]
[Date "2023.07.25"]
[WhiteClock "0:00:15"]
[BlackClock "0:00:08"]
[Board "174"]

1. c4 {[%clk 0:03:00]}  c6 {[%clk 0:02:59]} 2. Nf3 {[%clk 0:02:58]}  Nf6 {[%clk 0:02:59]} 3. e3 {[%clk 0:02:58]}  d5 {[%clk 0:02:59]} 4. Nc3 {[%clk 0:02:57]}  g6 {[%clk 0:02:54]} 5. b3 {[%clk 0:02:53]}  Bg7 {[%clk 0:02:54]} 6. Bb2 {[%clk 0:02:52]}  O-O {[%clk 0:02:54]} 7. d4 {[%clk 0:02:50]}  Ne4 {[%clk 0:02:35]} 8. Bd3 {[%clk 0:02:45]}  Nxc3 {[%clk 0:02:28]} 9. Bxc3 {[%clk 0:02:45]}  Bf5 {[%clk 0:02:26]} 10. Bxf5 {[%clk 0:02:44]}  gxf5 {[%clk 0:02:27]} 11. O-O {[%clk 0:02:43]}  e6 {[%clk 0:02:26]} 12. a4 {[%clk 0:02:33]}  Bf6 {[%clk 0:02:22]} 13. a5 {[%clk 0:02:29]}  Kh8 {[%clk 0:02:21]} 14. Kh1 {[%clk 0:02:28]}  Rg8 {[%clk 0:02:20]} 15. g3 {[%clk 0:02:27]}  Nd7 {[%clk 0:01:43]} 16. Ne5 {[%clk 0:02:04]}  Bxe5 {[%clk 0:01:25]} 17. dxe5 {[%clk 0:02:05]}  Nc5 {[%clk 0:01:24]} 18. Bd4 {[%clk 0:02:01]}  Qe7 {[%clk 0:01:14]} 19. Bxc5 {[%clk 0:01:57]}  Qxc5 {[%clk 0:01:15]} 20. Qd4 {[%clk 0:01:57]}  Qb4 {[%clk 0:01:00]} 21. Qh4 {[%clk 0:01:38]}  Rg6 {[%clk 0:00:54]} 22. Rfb1 {[%clk 0:01:27]}  Rc8 {[%clk 0:00:45]} 23. Ra4 {[%clk 0:01:25]}  Qc5 {[%clk 0:00:43]} 24. Qd4 {[%clk 0:01:19]}  Qxd4 {[%clk 0:00:36]} 25. exd4 {[%clk 0:01:20]}  f4 {[%clk 0:00:32]} 26. Kg2 {[%clk 0:01:13]}  fxg3 {[%clk 0:00:30]} 27. hxg3 {[%clk 0:01:14]}  Rcg8 {[%clk 0:00:27]} 28. Kf3 {[%clk 0:01:09]}  Rg4 {[%clk 0:00:26]} 29. c5 {[%clk 0:01:03]}  Re4 {[%clk 0:00:21]} 30. Rd1 {[%clk 0:01:01]}  Rf8 {[%clk 0:00:19]} 31. Kg2 {[%clk 0:00:56]}  f6 {[%clk 0:00:18]} 32. f4 {[%clk 0:00:56]}  fxe5 {[%clk 0:00:18]} 33. dxe5 {[%clk 0:00:51]}  Rxa4 {[%clk 0:00:17]} 34. bxa4 {[%clk 0:00:52]}  a6 {[%clk 0:00:15]} 35. Kf3 {[%clk 0:00:49]}  Rf7 {[%clk 0:00:16]} 36. g4 {[%clk 0:00:44]}  Kg7 {[%clk 0:00:16]} 37. Ke3 {[%clk 0:00:45]}  Kf8 {[%clk 0:00:16]} 38. Rh1 {[%clk 0:00:41]}  Ke8 {[%clk 0:00:16]} 39. Rh6 {[%clk 0:00:29]}  Ke7 {[%clk 0:00:16]} 40. Rh5 {[%clk 0:00:26]}  Rg7 {[%clk 0:00:16]} 41. Kf3 {[%clk 0:00:26]}  Kf7 {[%clk 0:00:16]} 42. f5 {[%clk 0:00:26]}  Ke8 {[%clk 0:00:09]} 43. f6 {[%clk 0:00:21]}  Rf7 {[%clk 0:00:09]} 44. Kf4 {[%clk 0:00:20]}  Kd7 {[%clk 0:00:09]} 45. Rg5 {[%clk 0:00:18]}  Ke8 {[%clk 0:00:08]} 46. Rg8+ {[%clk 0:00:18]}  Rf8 {[%clk 0:00:09]} 47. Rg7 {[%clk 0:00:17]}  Rf7 {[%clk 0:00:09]} 48. Rg8+ {[%clk 0:00:16]}  Rf8 {[%clk 0:00:10]} 49. Rg5 {[%clk 0:00:14]}  Rf7 {[%clk 0:00:10]} 50. Rh5 {[%clk 0:00:15]}  Kf8 {[%clk 0:00:10]} 51. g5 {[%clk 0:00:15]}  Ke8 {[%clk 0:00:11]} 52. Rh1 {[%clk 0:00:14]}  Kf8 {[%clk 0:00:11]} 53. Rg1 {[%clk 0:00:15]}  Ke8 {[%clk 0:00:11]} 54. Rb1 {[%clk 0:00:15]}  Kd8 {[%clk 0:00:11]} 55. Kg4 {[%clk 0:00:15]}  Ke8 {[%clk 0:00:11]} 56. Kh5 {[%clk 0:00:15]}  Kf8 {[%clk 0:00:12]} 57. g6 {[%clk 0:00:16]}  hxg6+ {[%clk 0:00:13]} 58. Kxg6 {[%clk 0:00:17]}  Ke8 {[%clk 0:00:13]} 59. Rh1 {[%clk 0:00:16]}  Rf8 {[%clk 0:00:13]} 60. Rh7 {[%clk 0:00:15]}  Rg8+ {[%clk 0:00:13]} 61. Rg7 {[%clk 0:00:15]}  Rh8 {[%clk 0:00:08]} 62. Rxb7 {[%clk 0:00:15]} 1-0


[Site "https://www.chess.com"]

[Event "Titled Tuesday Blitz July 25 Late 2023"]
[White "MateoReyes"]
[Black "Vafin, Ayrat"]
[BlackFideId "4146530"]
[WhiteElo "2450"]
[BlackElo "2264"]
[Result "1-0"]
[Round "3"]
[TimeControl "180+2"]
[Date "2023.07.25"]
[WhiteClock "0:01:07"]
[BlackClock "0:00:02"]
[Board "175"]

1. Nf3 {[%clk 0:02:58]}  d5 {[%clk 0:02:58]} 2. d4 {[%clk 0:02:57]}  Nf6 {[%clk 0:02:59]} 3. c4 {[%clk 0:02:57]}  e6 {[%clk 0:02:59]} 4. Nc3 {[%clk 0:02:57]}  Be7 {[%clk 0:02:59]} 5. Bg5 {[%clk 0:02:56]}  O-O {[%clk 0:02:59]} 6. e3 {[%clk 0:02:57]}  b6 {[%clk 0:02:59]} 7. cxd5 {[%clk 0:02:56]}  Nxd5 {[%clk 0:02:52]} 8. Bxe7 {[%clk 0:02:54]}  Nxe7 {[%clk 0:02:51]} 9. Bd3 {[%clk 0:02:54]}  Bb7 {[%clk 0:02:51]} 10. O-O {[%clk 0:02:54]}  Nd7 {[%clk 0:02:50]} 11. Rc1 {[%clk 0:02:54]}  c5 {[%clk 0:02:47]} 12. Qe2 {[%clk 0:02:52]}  Rc8 {[%clk 0:02:44]} 13. Ba6 {[%clk 0:02:50]}  Bxa6 {[%clk 0:02:26]} 14. Qxa6 {[%clk 0:02:48]}  Rc7 {[%clk 0:02:24]} 15. Nb5 {[%clk 0:02:47]}  Nb8 {[%clk 0:02:13]} 16. Qa3 {[%clk 0:02:41]}  Rb7 {[%clk 0:01:57]} 17. dxc5 {[%clk 0:02:36]}  bxc5 {[%clk 0:01:48]} 18. Rxc5 {[%clk 0:02:30]}  Nd7 {[%clk 0:01:36]} 19. Rc2 {[%clk 0:02:23]}  Rxb5 {[%clk 0:01:32]} 20. Qxa7 {[%clk 0:02:20]}  Rd5 {[%clk 0:01:14]} 21. e4 {[%clk 0:02:17]}  Rd3 {[%clk 0:01:06]} 22. Qa6 {[%clk 0:02:14]}  Rxf3 {[%clk 0:00:46]} 23. gxf3 {[%clk 0:02:13]}  Ng6 {[%clk 0:00:41]} 24. Kh1 {[%clk 0:02:07]}  Nf4 {[%clk 0:00:38]} 25. Rg1 {[%clk 0:02:03]}  Qh4 {[%clk 0:00:34]} 26. Qd6 {[%clk 0:01:57]}  Nf6 {[%clk 0:00:31]} 27. Rc5 {[%clk 0:01:40]}  Nh3 {[%clk 0:00:26]} 28. Rg3 {[%clk 0:01:27]}  Nxf2+ {[%clk 0:00:20]} 29. Kg2 {[%clk 0:01:27]}  N6xe4 {[%clk 0:00:10]} 30. fxe4 {[%clk 0:01:21]}  Nxe4 {[%clk 0:00:10]} 31. Qd4 {[%clk 0:01:16]}  Qxg3+ {[%clk 0:00:05]} 32. hxg3 {[%clk 0:01:15]}  Nxc5 {[%clk 0:00:05]} 33. Qxc5 {[%clk 0:01:15]}  Ra8 {[%clk 0:00:06]} 34. a4 {[%clk 0:01:13]}  h6 {[%clk 0:00:06]} 35. a5 {[%clk 0:01:12]}  g5 {[%clk 0:00:05]} 36. a6 {[%clk 0:01:12]}  Kg7 {[%clk 0:00:05]} 37. a7 {[%clk 0:01:12]}  Kg6 {[%clk 0:00:02]} 38. Qb6 {[%clk 0:01:10]}  f5 {[%clk 0:00:01]} 39. Qb8 {[%clk 0:01:10]}  Rxb8 {[%clk 0:00:01]} 40. axb8=Q {[%clk 0:01:09]}  Kh5 {[%clk 0:00:02]} 41. Qe8+ {[%clk 0:01:09]}  Kg4 {[%clk 0:00:02]} 42. Qxe6 {[%clk 0:01:08]}  h5 {[%clk 0:00:02]} 43. Qe2# {[%clk 0:01:07]} 1-0


[Site "https://www.chess.com"]

[Event "Titled Tuesday Blitz July 25 Late 2023"]
[White "The_Straightforward_Rook"]
[Black "Vaglio Munoz, Jaime"]
[BlackFideId "6500145"]
[WhiteElo "2420"]
[BlackElo "2243"]
[Result "0-1"]
[Round "3"]
[TimeControl "180+2"]
[Date "2023.07.25"]
[WhiteClock "0:00:08"]
[BlackClock "0:00:02"]
[Board "178"]

1. d4 {[%clk 0:03:00]}  c6 {[%clk 0:02:58]} 2. c4 {[%clk 0:03:00]}  b5 {[%clk 0:02:58]} 3. cxb5 {[%clk 0:02:56]}  cxb5 {[%clk 0:02:59]} 4. e4 {[%clk 0:02:57]}  Bb7 {[%clk 0:02:59]} 5. Bxb5 {[%clk 0:02:49]}  Bxe4 {[%clk 0:02:58]} 6. Nf3 {[%clk 0:02:50]}  Nf6 {[%clk 0:02:54]} 7. O-O {[%clk 0:02:49]}  e6 {[%clk 0:02:54]} 8. Nc3 {[%clk 0:02:49]}  Bc6 {[%clk 0:02:33]} 9. Bxc6 {[%clk 0:02:43]}  Nxc6 {[%clk 0:02:34]} 10. d5 {[%clk 0:02:43]}  Ne7 {[%clk 0:02:25]} 11. Bg5 {[%clk 0:02:32]}  Ng6 {[%clk 0:02:19]} 12. dxe6 {[%clk 0:02:30]}  dxe6 {[%clk 0:02:18]} 13. Bxf6 {[%clk 0:02:29]}  gxf6 {[%clk 0:02:13]} 14. Qa4+ {[%clk 0:02:28]}  Qd7 {[%clk 0:02:12]} 15. Nb5 {[%clk 0:02:25]}  Rb8 {[%clk 0:01:12]} 16. Nc7+ {[%clk 0:02:19]}  Ke7 {[%clk 0:01:09]} 17. Qxa7 {[%clk 0:02:03]}  Rc8 {[%clk 0:01:03]} 18. Rac1 {[%clk 0:02:00]}  Bh6 {[%clk 0:00:55]} 19. Rfd1 {[%clk 0:01:33]}  Bxc1 {[%clk 0:00:40]} 20. Rxd7+ {[%clk 0:01:26]}  Kxd7 {[%clk 0:00:41]} 21. Nd5+ {[%clk 0:01:27]}  Kd6 {[%clk 0:00:40]} 22. Nxf6 {[%clk 0:01:16]}  Rhd8 {[%clk 0:00:31]} 23. Ne4+ {[%clk 0:01:14]}  Kd5 {[%clk 0:00:27]} 24. Nc3+ {[%clk 0:01:12]}  Kd6 {[%clk 0:00:26]} 25. Qxf7 {[%clk 0:01:01]}  Rd7 {[%clk 0:00:20]} 26. Ne4+ {[%clk 0:00:56]}  Kc7 {[%clk 0:00:18]} 27. Neg5 {[%clk 0:00:23]}  Rxf7 {[%clk 0:00:16]} 28. Nxf7 {[%clk 0:00:24]}  Kd7 {[%clk 0:00:15]} 29. b3 {[%clk 0:00:22]}  Bf4 {[%clk 0:00:14]} 30. g3 {[%clk 0:00:22]}  Ke7 {[%clk 0:00:14]} 31. N7g5 {[%clk 0:00:20]}  Bxg5 {[%clk 0:00:13]} 32. Nxg5 {[%clk 0:00:21]}  h6 {[%clk 0:00:12]} 33. Ne4 {[%clk 0:00:21]}  Rc2 {[%clk 0:00:11]} 34. a4 {[%clk 0:00:21]}  Ne5 {[%clk 0:00:11]} 35. Kg2 {[%clk 0:00:20]}  Nd3 {[%clk 0:00:11]} 36. a5 {[%clk 0:00:19]}  Ra2 {[%clk 0:00:10]} 37. Kf3 {[%clk 0:00:14]}  Rxa5 {[%clk 0:00:09]} 38. Ke3 {[%clk 0:00:14]}  Ne5 {[%clk 0:00:08]} 39. f3 {[%clk 0:00:13]}  Rb5 {[%clk 0:00:08]} 40. Kf4 {[%clk 0:00:12]}  Ng6+ {[%clk 0:00:08]} 41. Kg4 {[%clk 0:00:12]}  Rxb3 {[%clk 0:00:08]} 42. Kh5 {[%clk 0:00:13]}  Ne5 {[%clk 0:00:08]} 43. f4 {[%clk 0:00:13]}  Nf3 {[%clk 0:00:07]} 44. h4 {[%clk 0:00:12]}  Nd4 {[%clk 0:00:03]} 45. Kxh6 {[%clk 0:00:12]}  Nf5+ {[%clk 0:00:03]} 46. Kg5 {[%clk 0:00:11]}  Nxg3 {[%clk 0:00:04]} 47. h5 {[%clk 0:00:12]}  Nxe4+ {[%clk 0:00:03]} 48. Kg6 {[%clk 0:00:11]}  Rg3+ {[%clk 0:00:03]} 49. Kh6 {[%clk 0:00:10]}  Kf7 {[%clk 0:00:03]} 50. Kh7 {[%clk 0:00:10]}  Rg7+ {[%clk 0:00:02]} 51. Kh6 {[%clk 0:00:10]}  Nf6 {[%clk 0:00:02]} 52. f5 {[%clk 0:00:08]}  Ng4# {[%clk 0:00:02]} 0-1


[Site "https://www.chess.com"]

[Event "Titled Tuesday Blitz July 25 Late 2023"]
[White "Winslow, Elliott"]
[Black "Rios Escobar, Adan"]
[WhiteFideId "2002523"]
[BlackFideId "3403645"]
[WhiteElo "2171"]
[BlackElo "2408"]
[Result "0-1"]
[Round "3"]
[TimeControl "180+2"]
[Date "2023.07.25"]
[WhiteClock "0:00:04"]
[BlackClock "0:00:08"]
[Board "181"]

1. e4 {[%clk 0:03:00]}  c5 {[%clk 0:02:56]} 2. Nf3 {[%clk 0:03:00]}  d6 {[%clk 0:02:55]} 3. d4 {[%clk 0:03:00]}  cxd4 {[%clk 0:02:54]} 4. Nxd4 {[%clk 0:03:01]}  Nf6 {[%clk 0:02:54]} 5. Nc3 {[%clk 0:03:00]}  a6 {[%clk 0:02:49]} 6. Be2 {[%clk 0:02:59]}  e5 {[%clk 0:02:47]} 7. Nb3 {[%clk 0:02:58]}  Be6 {[%clk 0:02:48]} 8. O-O {[%clk 0:02:52]}  Nbd7 {[%clk 0:02:48]} 9. a4 {[%clk 0:02:51]}  Rc8 {[%clk 0:02:42]} 10. f3 {[%clk 0:02:32]}  Be7 {[%clk 0:02:36]} 11. Nd5 {[%clk 0:02:28]}  Nxd5 {[%clk 0:02:29]} 12. exd5 {[%clk 0:02:28]}  Bf5 {[%clk 0:02:30]} 13. c4 {[%clk 0:02:25]}  O-O {[%clk 0:02:17]} 14. Be3 {[%clk 0:02:24]}  Bg5 {[%clk 0:02:15]} 15. Qd2 {[%clk 0:02:19]}  Bxe3+ {[%clk 0:02:12]} 16. Qxe3 {[%clk 0:02:18]}  Bg6 {[%clk 0:02:09]} 17. a5 {[%clk 0:02:10]}  f5 {[%clk 0:02:05]} 18. f4 {[%clk 0:02:03]}  Kh8 {[%clk 0:02:04]} 19. fxe5 {[%clk 0:01:54]}  Nxe5 {[%clk 0:01:53]} 20. Nd4 {[%clk 0:01:33]}  Re8 {[%clk 0:01:37]} 21. Ne6 {[%clk 0:01:32]}  Nxc4 {[%clk 0:01:07]} 22. Bxc4 {[%clk 0:01:17]}  Rxc4 {[%clk 0:01:06]} 23. Nxd8 {[%clk 0:00:51]}  Rxe3 {[%clk 0:01:04]} 24. Nxb7 {[%clk 0:00:51]}  Rc2 {[%clk 0:00:46]} 25. Rf2 {[%clk 0:00:45]}  Rxf2 {[%clk 0:00:38]} 26. Kxf2 {[%clk 0:00:44]}  Rd3 {[%clk 0:00:38]} 27. Rc1 {[%clk 0:00:38]}  h6 {[%clk 0:00:37]} 28. b4 {[%clk 0:00:20]}  Rxd5 {[%clk 0:00:35]} 29. Rc6 {[%clk 0:00:19]}  Rd4 {[%clk 0:00:14]} 30. b5 {[%clk 0:00:17]}  axb5 {[%clk 0:00:13]} 31. a6 {[%clk 0:00:17]}  Ra4 {[%clk 0:00:12]} 32. Nxd6 {[%clk 0:00:16]}  f4 {[%clk 0:00:11]} 33. Nxb5 {[%clk 0:00:14]}  Be4 {[%clk 0:00:10]} 34. Re6 {[%clk 0:00:13]}  Ra2+ {[%clk 0:00:09]} 35. Ke1 {[%clk 0:00:13]}  Bxg2 {[%clk 0:00:09]} 36. a7 {[%clk 0:00:10]}  f3 {[%clk 0:00:09]} 37. Nd4 {[%clk 0:00:04]}  f2+ {[%clk 0:00:08]} 0-1


[Site "https://www.chess.com"]

[Event "Titled Tuesday Blitz July 25 Late 2023"]
[White "Nunez V, Gustavo Eduardo"]
[Black "Oliveira, Tiago Batista"]
[WhiteFideId "4403690"]
[BlackFideId "2108291"]
[WhiteElo "2406"]
[BlackElo "2155"]
[Result "1-0"]
[Round "3"]
[TimeControl "180+2"]
[Date "2023.07.25"]
[WhiteClock "0:01:30"]
[BlackClock "0:00:25"]
[Board "182"]

1. e4 {[%clk 0:03:00]}  e5 {[%clk 0:02:59]} 2. Nc3 {[%clk 0:03:00]}  Nc6 {[%clk 0:02:59]} 3. g3 {[%clk 0:02:59]}  Bc5 {[%clk 0:02:58]} 4. Bg2 {[%clk 0:02:58]}  Nf6 {[%clk 0:02:58]} 5. h3 {[%clk 0:02:57]}  h6 {[%clk 0:02:57]} 6. Nge2 {[%clk 0:02:57]}  O-O {[%clk 0:02:57]} 7. O-O {[%clk 0:02:57]}  a5 {[%clk 0:02:54]} 8. d3 {[%clk 0:02:57]}  Qe7 {[%clk 0:02:47]} 9. Kh2 {[%clk 0:02:55]}  Nd4 {[%clk 0:02:43]} 10. f4 {[%clk 0:02:53]}  Nxe2 {[%clk 0:02:43]} 11. Qxe2 {[%clk 0:02:53]}  exf4 {[%clk 0:02:39]} 12. gxf4 {[%clk 0:02:51]}  d6 {[%clk 0:02:34]} 13. Be3 {[%clk 0:02:49]}  Bxe3 {[%clk 0:02:32]} 14. Qxe3 {[%clk 0:02:50]}  Bd7 {[%clk 0:02:24]} 15. Rae1 {[%clk 0:02:47]}  Bc6 {[%clk 0:02:22]} 16. Rf2 {[%clk 0:02:39]}  Rae8 {[%clk 0:02:18]} 17. e5 {[%clk 0:02:31]}  Bxg2 {[%clk 0:02:04]} 18. Rxg2 {[%clk 0:02:30]}  Nh7 {[%clk 0:01:36]} 19. Reg1 {[%clk 0:02:12]}  g6 {[%clk 0:01:34]} 20. d4 {[%clk 0:01:55]}  dxe5 {[%clk 0:01:31]} 21. fxe5 {[%clk 0:01:56]}  Qh4 {[%clk 0:01:07]} 22. Rg4 {[%clk 0:01:56]}  Qh5 {[%clk 0:01:07]} 23. Nd5 {[%clk 0:01:49]}  c5 {[%clk 0:01:03]} 24. c3 {[%clk 0:01:44]}  cxd4 {[%clk 0:01:00]} 25. cxd4 {[%clk 0:01:45]}  Re6 {[%clk 0:00:49]} 26. Nf4 {[%clk 0:01:33]}  Qf5 {[%clk 0:00:49]} 27. Nxe6 {[%clk 0:01:31]}  Qxe6 {[%clk 0:00:47]} 28. Qxh6 {[%clk 0:01:31]}  g5 {[%clk 0:00:32]} 29. Rxg5+ {[%clk 0:01:29]}  Nxg5 {[%clk 0:00:25]} 30. Rxg5+ {[%clk 0:01:30]} 1-0


[Site "https://www.chess.com"]

[Event "Titled Tuesday Blitz July 25 Late 2023"]
[White "Bazilius, Augustinas"]
[Black "Tsukerman, Julia"]
[WhiteFideId "12832251"]
[BlackFideId "2621649"]
[WhiteElo "2401"]
[BlackElo "2111"]
[Result "0-1"]
[Round "3"]
[TimeControl "180+2"]
[Date "2023.07.25"]
[WhiteClock "0:00:00"]
[BlackClock "0:00:33"]
[Board "184"]

1. d4 {[%clk 0:03:00]}  d5 {[%clk 0:02:58]} 2. c4 {[%clk 0:02:57]}  e6 {[%clk 0:02:57]} 3. Nf3 {[%clk 0:02:55]}  Be7 {[%clk 0:02:56]} 4. g3 {[%clk 0:02:52]}  Nf6 {[%clk 0:02:47]} 5. Bg2 {[%clk 0:02:50]}  O-O {[%clk 0:02:48]} 6. O-O {[%clk 0:02:46]}  dxc4 {[%clk 0:02:49]} 7. Ne5 {[%clk 0:02:41]}  Nc6 {[%clk 0:02:46]} 8. Nxc6 {[%clk 0:02:42]}  bxc6 {[%clk 0:02:45]} 9. Na3 {[%clk 0:02:42]}  Bxa3 {[%clk 0:02:27]} 10. bxa3 {[%clk 0:02:43]}  Nd5 {[%clk 0:02:08]} 11. e4 {[%clk 0:02:27]}  Nb6 {[%clk 0:01:56]} 12. Be3 {[%clk 0:02:18]}  Qe7 {[%clk 0:01:52]} 13. a4 {[%clk 0:02:07]}  a5 {[%clk 0:01:45]} 14. a3 {[%clk 0:02:03]}  Rd8 {[%clk 0:01:41]} 15. Qc2 {[%clk 0:02:02]}  Ba6 {[%clk 0:01:40]} 16. Rfe1 {[%clk 0:01:58]}  Qf8 {[%clk 0:01:25]} 17. Red1 {[%clk 0:01:18]}  Rd7 {[%clk 0:01:10]} 18. Bf1 {[%clk 0:00:16]}  Rad8 {[%clk 0:01:02]} 19. Be2 {[%clk 0:00:11]}  Qd6 {[%clk 0:00:58]} 20. Qc3 {[%clk 0:00:08]}  Nxa4 {[%clk 0:00:48]} 21. Qxa5 {[%clk 0:00:08]}  Bb5 {[%clk 0:00:47]} 22. Bxc4 {[%clk 0:00:08]}  Nb2 {[%clk 0:00:39]} 23. Bxb5 {[%clk 0:00:04]}  Nxd1 {[%clk 0:00:39]} 24. Bf4 {[%clk 0:00:00]}  Qxd4 {[%clk 0:00:33]} 0-1


[Site "https://www.chess.com"]